bitfinex/quotes_SOLUSD_20240708
["timestamp","ask_amount","ask_price","bid_price","bid_amount"]
[1720406453911,100.0,131.88,131.81,20.41159734]
[1720406455736,100.0,131.88,131.81,20.0]
[1720406457704,1.63174258,131.87,131.81,20.0]
[1720406458213,100.0,131.86,131.81,20.0]
[1720406458529,101.63174258,131.87,131.79,0.8520024]
[1720406458825,100.0,131.85,131.79,0.8520024]
[1720406459418,1.63174258,131.84,131.79,0.8520024]
[1720406460031,100.0,131.83,131.79,0.8520024]
[1720406460211,1.63174258,131.84,131.79,0.8520024]
[1720406460613,0.17,131.86,131.79,0.8520024]
[1720406460614,1.63174258,131.83,131.79,0.8520024]
[1720406462018,1.63174258,131.83,131.81,7.5861]
[1720406462336,115.2531,131.92,131.82,39.1342]
[1720406462532,100.0,131.9,131.82,39.1342]
[1720406462734,100.0,131.9,131.82,20.17]
[1720406462933,15.2531,131.92,131.83,1.51432116]
[1720406463144,100.0,131.95,131.85,7.5839]
[1720406463319,22.7539,131.97,131.86,20.17]
[1720406463729,100.0,132.0,131.88,47.1424]
[1720406463913,100.0,132.0,131.89,20.17]
[1720406464312,100.0,131.95,131.89,20.0]
[1720406465035,100.0,131.93,131.89,20.0]
[1720406465336,100.0,131.93,131.84,20.0]
[1720406465511,100.0,131.98,131.84,20.0]
[1720406465715,100.0,131.94,131.84,20.0]
[1720406466115,100.0,131.96,131.84,20.0]
[1720406466317,100.0,131.96,131.85,0.17]
[1720406466613,100.0,131.98,131.86,7.5837]
[1720406466816,100.0,131.96,131.87,20.17]
[1720406467137,100.0,131.98,131.87,67.3131]
[1720406467738,100.0,131.96,131.87,59.73]
[1720406467933,100.0,131.93,131.83,48.66827477]
[1720406468155,22.7539,132.01,131.83,48.66827477]
[1720406468156,100.0,131.91,131.83,42.5201]
[1720406468837,0.17,131.92,131.83,40.80033773]
[1720406469042,0.17,131.92,131.79,40.4120024]
[1720406469043,100.0,131.9,131.79,40.4120024]
[1720406469219,100.0,131.91,131.79,46.59847128]
[1720406469427,100.0,131.89,131.79,46.59847128]
[1720406469636,100.0,131.91,131.79,46.59847128]
[1720406469837,100.0,131.91,131.8,7.5872]
[1720406470350,100.0,131.91,131.81,20.17]
[1720406471025,100.0,131.91,131.81,0.17]
[1720406471636,100.0,131.86,131.79,46.59847128]
[1720406471827,100.0,131.86,131.79,40.4120024]
[1720406472447,1.75461685,131.85,131.79,0.8520024]
[1720406474449,1.75461685,131.85,131.8,0.17]
[1720406474657,1.75461685,131.85,131.79,0.8520024]
[1720406477648,1.75461685,131.85,131.8,0.17]
[1720406478151,100.0,131.83,131.79,0.8520024]
[1720406478334,1.75461685,131.85,131.79,0.8520024]
[1720406478728,1.75461685,131.85,131.79,40.4120024]
[1720406478956,1.75461685,131.85,131.8,20.0]
[1720406479753,100.0,131.84,131.79,0.8520024]
[1720406480328,1.75433578,131.83,131.79,0.8520024]
[1720406482249,100.0,131.9,131.79,0.8520024]
[1720406482471,100.0,131.9,131.8,0.17]
[1720406482956,100.0,131.92,131.81,5.517]
[1720406483158,100.0,131.96,131.82,7.7555]
[1720406483363,15.0,132.03,131.82,39.135]
[1720406483364,1.69868102,131.92,131.82,39.135]
[1720406483853,100.0,131.9,131.82,20.0]
[1720406484158,100.0,131.88,131.82,20.0]
[1720406484337,100.0,131.88,131.81,2.9601]
[1720406485451,100.0,131.89,131.81,2.9601]
[1720406486032,100.0,131.91,131.82,0.17]
[1720406486233,100.0,131.89,131.82,0.17]
[1720406487454,100.0,131.87,131.81,2.9601]
[1720406487667,100.0,131.85,131.8,20.0]
[1720406487861,100.0,131.85,131.79,0.8520024]
[1720406488439,100.0,131.87,131.79,0.8520024]
[1720406489742,100.0,131.84,131.79,0.8520024]
[1720406490160,100.0,131.86,131.79,0.8520024]
[1720406491536,100.0,131.84,131.79,0.8520024]
[1720406492540,100.0,131.82,131.79,0.8520024]
[1720406493448,22.7952,131.85,131.79,0.8520024]
[1720406493760,100.0,131.86,131.79,0.8520024]
[1720406493990,122.7952,131.89,131.79,0.8520024]
[1720406494143,1.6989579,131.88,131.79,20.8520024]
[1720406494473,1.6989579,131.88,131.8,0.17]
[1720406495488,100.0,131.87,131.79,0.8520024]
[1720406495798,100.0,131.85,131.79,0.8520024]
[1720406495956,100.0,131.83,131.79,0.8520024]
[1720406496477,100.0,131.81,131.79,0.8520024]
[1720406497376,100.0,131.83,131.79,0.8520024]
[1720406497957,100.0,131.81,131.79,0.8520024]
[1720406498172,100.0,131.83,131.79,0.8520024]
[1720406499657,0.17,131.84,131.79,0.8520024]
[1720406499658,100.0,131.8,131.79,0.8520024]
[1720406499987,100.17,131.8,131.79,0.8520024]
[1720406500975,100.0,131.8,131.79,0.8520024]
[1720406501156,23.2181,131.82,131.79,0.8520024]
[1720406501367,0.17,131.81,131.79,0.8520024]
[1720406501757,100.0,131.82,131.79,0.8520024]
[1720406502260,100.0,131.8,131.79,0.8520024]
[1720406502455,100.0,131.82,131.79,0.8520024]
[1720406502661,100.0,131.83,131.79,0.8520024]
[1720406502976,100.0,131.8,131.79,0.8520024]
[1720406503175,100.17,131.8,131.79,0.8520024]
[1720406506476,100.0,131.73,131.66,0.8520024]
[1720406506670,21.9398,131.79,131.66,0.8520024]
[1720406506877,100.0,131.74,131.66,0.8520024]
[1720406507076,21.7698,131.83,131.69,39.56]
[1720406507382,100.0,131.82,131.71,7.5922]
[1720406507581,100.0,131.82,131.7,26.5744]
[1720406507770,100.0,131.82,131.71,27.5921]
[1720406508292,100.0,131.8,131.72,0.17]
[1720406509087,100.0,131.8,131.71,20.0]
[1720406509494,100.0,131.8,131.72,0.17]
[1720406510280,100.0,131.75,131.69,39.56]
[1720406510483,100.0,131.75,131.67,45.929]
[1720406511672,100.0,131.73,131.67,45.929]
[1720406512181,100.0,131.75,131.67,45.929]
[1720406513291,100.0,131.75,131.68,0.17]
[1720406513484,100.0,131.73,131.68,20.17]
[1720406513670,100.0,131.73,131.68,20.0]
[1720406518087,100.0,131.75,131.68,20.0]
[1720406519188,100.0,131.73,131.68,20.0]
[1720406521592,100.0,131.75,131.68,20.0]
[1720406521797,22.4714,131.8,131.68,27.5937]
[1720406521798,100.0,131.78,131.68,27.5937]
[1720406522010,16.254,131.8,131.71,11.4042]
[1720406522193,6.6065,131.83,131.76,7.5895]
[1720406522392,100.0,131.85,131.77,59.56]
[1720406523196,106.1011,131.87,131.77,59.56]
[1720406524122,106.1011,131.87,131.78,3.8121]
[1720406525423,100.0,131.85,131.78,3.8121]
[1720406526300,100.0,131.87,131.78,3.8121]
[1720406526505,106.485,131.91,131.81,39.56]
[1720406526718,100.0,131.91,131.82,20.17]
[1720406526921,100.0,131.91,131.82,39.135]
[1720406527216,100.0,131.91,131.82,27.7559]
[1720406527415,100.0,131.92,131.85,39.56]
[1720406527597,100.0,131.9,131.85,39.56]
[1720406527797,100.0,131.9,131.86,20.0]
[1720406527998,100.0,131.92,131.86,20.0]
[1720406528223,100.0,131.94,131.86,20.0]
[1720406528434,100.0,131.96,131.86,20.0]
[1720406528729,100.0,131.96,131.89,39.56]
[1720406528898,100.0,131.96,131.9,20.0]
[1720406529108,106.4803,131.99,131.9,20.0]
[1720406530324,100.0,131.94,131.9,20.0]
[1720406530709,100.0,131.92,131.85,3.8121]
[1720406530901,100.0,131.91,131.85,3.8121]
[1720406531102,100.0,131.91,131.84,39.56]
[1720406531430,100.0,131.93,131.81,45.929]
[1720406531611,100.0,131.93,131.83,7.5852]
[1720406531816,15.0396,131.95,131.85,39.56]
[1720406531997,100.0,131.97,131.9,7.5814]
[1720406532202,100.0,131.97,131.89,43.3721]
[1720406532505,100.0,131.95,131.89,43.3721]
[1720406533027,100.0,131.95,131.9,20.0]
[1720406533319,100.0,131.93,131.9,20.0]
[1720406533503,100.0,131.95,131.9,20.0]
[1720406533824,100.0,131.93,131.9,20.0]
[1720406534005,100.0,131.91,131.85,3.8121]
[1720406534503,100.0,131.91,131.81,59.65314902]
[1720406534819,100.0,131.91,131.81,52.06664902]
[1720406535005,100.0,131.89,131.81,45.929]
[1720406535210,22.1985,131.91,131.81,45.929]
[1720406535410,100.0,131.86,131.81,43.3721]
[1720406535914,100.0,131.86,131.81,39.56]
[1720406537036,100.17,131.9,131.81,39.56]
[1720406537201,100.0,131.9,131.82,20.0]
[1720406538017,106.1844,131.94,131.82,20.0]
[1720406538214,106.1844,131.94,131.83,0.17]
[1720406538416,16.0931,131.95,131.85,7.5843]
[1720406538616,100.0,131.94,131.86,20.17]
[1720406538807,100.0,131.94,131.86,20.0]
[1720406539207,16.0931,131.95,131.85,20.0]
[1720406539409,100.0,131.99,131.88,47.1425]
[1720406539607,100.0,132.0,131.89,20.17]
[1720406539828,22.2775,132.01,131.89,20.17]
[1720406539829,100.0,131.99,131.89,20.17]
[1720406540004,100.0,131.98,131.89,20.17]
[1720406540532,22.2775,132.01,131.89,20.0]
[1720406540714,100.0,131.96,131.89,20.0]
[1720406541305,100.0,131.94,131.89,20.0]
[1720406542313,100.0,131.92,131.89,20.0]
[1720406542638,100.0,131.98,131.89,20.0]
[1720406542806,100.0,131.96,131.89,20.0]
[1720406543121,100.0,131.94,131.89,20.0]
[1720406543505,100.0,131.96,131.89,20.0]
[1720406543700,100.0,131.99,131.89,20.0]
[1720406543907,100.0,131.99,131.9,7.5813]
[1720406544112,100.0,131.99,131.91,20.0]
[1720406544338,100.0,131.99,131.89,27.5819]
[1720406544505,100.0,131.96,131.84,38.83746677]
[1720406544713,100.0,131.96,131.84,31.25266677]
[1720406545021,100.0,131.96,131.86,39.56]
[1720406545606,100.0,131.9,131.86,39.56]
[1720406545806,100.0,131.9,131.84,3.8121]
[1720406546002,100.0,131.88,131.81,45.48414327]
[1720406546224,21.8997,131.93,131.81,39.56]
[1720406546415,0.17,131.92,131.81,39.56]
[1720406546619,100.0,131.91,131.81,39.56]
[1720406546922,100.0,131.89,131.81,39.56]
[1720406547232,100.0,131.86,131.81,39.56]
[1720406547923,100.0,131.84,131.81,39.56]
[1720406548129,100.0,131.84,131.76,6.369]
[1720406548931,0.17,131.9,131.76,6.369]
[1720406549115,100.0,131.87,131.78,39.56]
[1720406549316,0.17,131.9,131.78,39.56]
[1720406549317,100.0,131.84,131.78,39.56]
[1720406549517,100.17,131.86,131.76,6.369]
[1720406549714,100.0,131.87,131.77,20.17]
[1720406549919,100.0,131.87,131.78,39.56]
[1720406550119,100.0,131.87,131.79,0.17]
[1720406550325,100.0,131.87,131.79,20.17]
[1720406550741,100.0,131.85,131.79,20.17]
[1720406551448,100.0,131.89,131.79,20.17]
[1720406551629,100.0,131.93,131.83,7.5854]
[1720406551933,22.3928,131.97,131.86,39.56]
[1720406552115,100.0,131.99,131.88,3.8121]
[1720406552316,100.0,131.99,131.89,0.17]
[1720406552528,100.0,131.97,131.89,0.17]
[1720406553226,100.0,131.99,131.9,39.56]
[1720406553533,100.0,132.01,131.91,20.17]
[1720406553731,100.0,132.01,131.91,27.7509]
[1720406554127,100.0,132.01,131.91,20.17]
[1720406554326,100.0,132.04,131.92,7.5803]
[1720406554529,100.0,132.04,131.95,39.56]
[1720406554721,100.0,132.04,131.96,20.0]
[1720406555020,106.5745,132.05,131.96,20.0]
[1720406555233,100.0,132.03,131.96,20.0]
[1720406555433,100.0,132.0,131.91,39.56]
[1720406555634,100.0,132.0,131.92,0.17]
[1720406556416,100.0,132.04,131.95,39.56]
[1720406556627,100.0,132.04,131.96,20.17]
[1720406557335,100.0,132.01,131.96,20.0]
[1720406557927,100.0,131.99,131.96,20.0]
[1720406558322,16.1457,132.06,131.96,20.0]
[1720406558543,100.0,132.0,131.96,20.0]
[1720406558817,100.0,131.98,131.88,62.3287]
[1720406559042,100.0,131.96,131.89,39.56]
[1720406560831,100.0,131.94,131.88,6.11842164]
[1720406561162,100.0,131.92,131.85,39.56]
[1720406561826,100.0,131.9,131.85,39.56]
[1720406562221,100.0,131.92,131.85,39.56]
[1720406563547,100.0,131.92,131.84,3.8121]
[1720406564135,100.0,131.94,131.84,3.8121]
[1720406564330,100.0,131.94,131.85,7.7543]
[1720406564534,100.0,131.94,131.86,20.0]
[1720406564827,100.0,131.94,131.87,0.17]
[1720406565944,100.0,131.96,131.87,39.73]
[1720406566145,100.0,131.96,131.88,20.0]
[1720406566364,100.0,131.96,131.89,0.17]
[1720406567851,100.0,131.94,131.88,20.0]
[1720406568230,100.0,131.92,131.88,20.0]
[1720406568429,100.0,131.94,131.88,20.0]
[1720406569648,100.0,131.97,131.88,20.0]
[1720406569839,0.17,131.98,131.88,20.0]
[1720406570042,100.0,131.97,131.88,20.0]
[1720406570235,100.0,131.97,131.89,0.17]
[1720406570551,100.0,131.99,131.89,7.7516]
[1720406570737,100.0,131.99,131.9,20.0]
[1720406571042,100.0,131.99,131.91,0.17]
[1720406571256,100.0,132.02,131.91,39.73]
[1720406571429,100.0,132.02,131.92,23.8121]
[1720406571951,122.0652,132.04,131.93,7.5797]
[1720406572246,122.0652,132.04,131.95,39.56]
[1720406572437,122.0652,132.04,131.96,20.0]
[1720406572639,115.7825,132.04,131.96,20.0]
[1720406573848,6.45,132.08,131.96,20.0]
[1720406573849,100.0,132.07,131.97,19.1132]
[1720406574063,100.0,132.07,131.99,39.56]
[1720406574352,100.0,132.07,132.0,20.0]
[1720406577925,100.0,132.06,132.0,20.0]
[1720406578125,100.0,132.02,131.92,3.8121]
[1720406578438,100.0,132.04,131.94,47.1391]
[1720406578628,100.0,132.04,131.94,39.56]
[1720406579424,100.0,132.06,131.95,20.0]
[1720406579824,100.0,132.04,131.96,0.17]
[1720406580051,100.0,132.02,131.96,0.17]
[1720406580252,100.0,132.02,131.95,20.0]
[1720406580464,100.0,132.02,131.94,59.56]
[1720406581669,100.0,132.02,131.92,9.85180518]
[1720406581968,0.17,132.01,131.92,3.8121]
[1720406582152,100.0,132.0,131.92,3.8121]
[1720406582476,100.0,131.97,131.9,39.56]
[1720406583271,100.0,131.99,131.9,39.56]
[1720406583466,100.0,131.96,131.9,39.56]
[1720406583863,100.0,131.99,131.91,20.0]
[1720406584463,100.0,131.95,131.88,9.98123608]
[1720406584666,100.0,131.93,131.86,45.75709571]
[1720406584963,100.0,131.93,131.86,39.56]
[1720406585176,100.0,131.95,131.86,39.56]
[1720406585379,100.0,131.93,131.86,39.56]
[1720406585841,100.0,131.95,131.86,39.56]
[1720406586048,100.0,131.95,131.86,47.1435]
[1720406586247,100.0,131.95,131.86,39.56]
[1720406586467,100.0,131.93,131.86,39.56]
[1720406587164,100.0,131.93,131.87,20.0]
[1720406587457,100.0,131.98,131.87,20.0]
[1720406587653,22.2064,132.01,131.9,39.56]
[1720406587654,100.0,132.0,131.9,39.56]
[1720406587956,100.0,132.0,131.91,20.17]
[1720406588666,100.0,131.99,131.91,20.0]
[1720406588867,22.2064,132.01,131.91,20.0]
[1720406588868,100.0,131.98,131.91,20.0]
[1720406589572,100.0,131.96,131.91,20.0]
[1720406589779,100.0,131.94,131.91,20.0]
[1720406589953,0.17,131.97,131.91,20.0]
[1720406590352,100.0,131.95,131.91,20.0]
[1720406590775,100.17,131.97,131.91,20.0]
[1720406591583,100.0,131.95,131.91,20.0]
[1720406591971,100.0,131.95,131.87,20.0]
[1720406592781,100.0,131.93,131.87,20.0]
[1720406593379,100.0,131.93,131.85,13.69001275]
[1720406593380,100.0,131.93,131.85,6.10571275]
[1720406593578,100.0,131.91,131.8,3.8121]
[1720406593752,100.0,131.87,131.8,3.8121]
[1720406595453,100.0,131.89,131.8,3.8121]
[1720406595653,100.0,131.87,131.8,3.8121]
[1720406596089,100.0,131.87,131.8,23.8121]
[1720406596882,0.17,131.9,131.79,39.56]
[1720406596883,100.0,131.85,131.79,39.56]
[1720406597085,0.17,131.86,131.77,3.8121]
[1720406597086,100.0,131.83,131.77,3.8121]
[1720406597882,100.0,131.85,131.77,3.8121]
[1720406598375,100.0,131.85,131.78,0.17]
[1720406598572,100.0,131.91,131.78,0.17]
[1720406598779,100.0,131.89,131.78,0.17]
[1720406599079,100.0,131.89,131.79,7.5877]
[1720406599270,100.0,131.89,131.8,20.17]
[1720406599661,100.0,131.86,131.8,20.0]
[1720406599885,100.0,131.86,131.78,20.0]
[1720406600385,100.0,131.84,131.78,20.0]
[1720406600592,100.0,131.82,131.75,2.5569]
[1720406600761,100.0,131.84,131.75,2.5569]
[1720406601764,100.0,131.84,131.75,22.5569]
[1720406602369,122.5156,131.86,131.76,0.17]
[1720406602575,122.5156,131.86,131.75,22.5569]
[1720406602576,100.0,131.84,131.75,22.5569]
[1720406602788,100.0,131.82,131.75,22.5569]
[1720406602977,100.0,131.84,131.75,22.5569]
[1720406604392,22.3633,131.9,131.75,45.3869]
[1720406604569,22.3633,131.9,131.79,39.56]
[1720406604772,100.0,131.89,131.8,20.17]
[1720406604988,100.0,131.86,131.8,20.17]
[1720406605170,100.0,131.86,131.8,20.0]
[1720406606668,100.0,131.88,131.8,27.5872]
[1720406606892,100.0,131.88,131.8,20.0]
[1720406607394,100.0,131.86,131.8,20.0]
[1720406607695,100.0,131.84,131.79,39.56]
[1720406608398,100.0,131.82,131.79,39.56]
[1720406608573,100.0,131.82,131.75,8.51918628]
[1720406608888,100.0,131.82,131.75,2.5569]
[1720406609977,100.0,131.8,131.74,3.8121]
[1720406610174,15.0,131.89,131.74,3.8121]
[1720406610175,100.0,131.78,131.74,3.8121]
[1720406611078,100.0,131.78,131.72,39.56]
[1720406613593,100.0,131.76,131.72,39.56]
[1720406613906,100.0,131.76,131.73,20.0]
[1720406615405,100.0,131.78,131.73,20.0]
[1720406619914,100.0,131.76,131.73,20.0]
[1720406620619,100.0,131.76,131.71,3.8121]
[1720406621215,100.0,131.81,131.71,3.8121]
[1720406621417,100.0,131.81,131.72,19.149]
[1720406621718,100.0,131.82,131.73,20.0]
[1720406621909,100.0,131.79,131.73,20.0]
[1720406622214,100.0,131.79,131.72,0.17]
[1720406622586,100.0,131.79,131.71,3.8121]
[1720406623602,100.0,131.81,131.71,11.4044]
[1720406623809,100.0,131.81,131.72,27.7617]
[1720406624315,100.0,131.81,131.72,20.17]
[1720406624696,100.0,131.79,131.72,20.17]
[1720406625210,100.0,131.79,131.72,0.17]
[1720406626316,100.0,131.79,131.72,20.0]
[1720406626625,100.0,131.77,131.71,3.8121]
[1720406627329,100.0,131.75,131.71,3.8121]
[1720406628202,100.0,131.75,131.7,20.0]
[1720406628417,100.0,131.75,131.69,20.0]
[1720406630316,100.0,131.73,131.69,20.0]
[1720406631490,100.0,131.75,131.69,20.0]
[1720406632318,100.0,131.73,131.69,20.0]
[1720406632829,100.0,131.75,131.69,20.0]
[1720406633305,100.0,131.71,131.69,20.0]
[1720406633506,100.0,131.73,131.69,20.0]
[1720406633811,22.3078,131.75,131.69,20.0]
[1720406633812,100.0,131.71,131.69,20.0]
[1720406634608,122.3078,131.75,131.7,35.31]
[1720406634910,22.3078,131.75,131.71,20.0]
[1720406635325,122.3078,131.79,131.73,35.31]
[1720406635513,100.0,131.77,131.73,35.31]
[1720406635910,100.0,131.75,131.73,35.31]
[1720406636800,100.0,131.75,131.71,20.0]
[1720406636801,22.3078,131.79,131.71,20.0]
[1720406637010,100.0,131.77,131.71,35.31]
[1720406637336,100.0,131.76,131.72,20.0]
[1720406637622,0.17,131.78,131.66,0.8520024]
[1720406637623,100.0,131.77,131.66,0.8520024]
[1720406637823,100.0,131.77,131.71,35.31]
[1720406638044,100.0,131.77,131.74,35.31]
[1720406638509,100.0,131.75,131.74,35.31]
[1720406638718,100.0,131.77,131.74,35.31]
[1720406639312,100.0,131.75,131.74,35.31]
[1720406640431,100.0,131.77,131.74,35.31]
[1720406641322,100.0,131.75,131.66,8.4472024]
[1720406641638,100.0,131.75,131.72,35.31]
[1720406642222,100.0,131.73,131.72,35.31]
[1720406642423,100.0,131.73,131.72,55.31]
[1720406642813,100.0,131.75,131.72,55.31]
[1720406644438,100.0,131.77,131.72,55.31]
[1720406644651,22.3078,131.79,131.75,35.31]
[1720406644824,100.0,131.82,131.78,35.31]
[1720406645220,21.545,131.83,131.78,35.31]
[1720406645416,15.1589,131.83,131.78,35.31]
[1720406646114,100.0,131.81,131.78,35.31]
[1720406646317,15.1589,131.83,131.78,35.31]
[1720406646517,100.0,131.85,131.81,35.31]
[1720406646741,22.1322,131.86,131.81,35.31]
[1720406646940,100.0,131.83,131.81,35.31]
[1720406647149,16.2309,131.89,131.72,37.38749197]
[1720406647150,100.0,131.81,131.72,37.38749197]
[1720406647439,100.0,131.81,131.79,35.31]
[1720406647742,100.0,131.78,131.73,0.17]
[1720406648054,100.0,131.78,131.77,35.31]
[1720406648237,100.0,131.82,131.77,35.31]
[1720406648546,100.0,131.86,131.81,35.31]
[1720406648917,100.0,131.82,131.81,35.31]
[1720406649632,100.0,131.78,131.74,35.31]
[1720406649818,100.0,131.78,131.77,35.31]
[1720406650444,100.0,131.76,131.69,3.8121]
[1720406650641,100.0,131.78,131.74,35.31]
[1720406651025,100.0,131.8,131.77,35.31]
[1720406651422,100.0,131.78,131.69,11.4053]
[1720406651656,100.0,131.78,131.75,35.31]
[1720406652233,100.0,131.82,131.75,35.31]
[1720406652447,100.0,131.82,131.79,35.31]
[1720406653537,100.0,131.8,131.79,35.31]
[1720406655562,100.0,131.8,131.76,35.31]
[1720406655727,100.0,131.77,131.76,35.31]
[1720406656144,100.0,131.79,131.76,35.31]
[1720406656547,100.0,131.75,131.68,8.74895357]
[1720406656729,100.0,131.75,131.71,35.31]
[1720406657448,100.0,131.73,131.71,35.31]
[1720406657638,100.0,131.75,131.71,35.31]
[1720406658235,100.0,131.77,131.71,35.31]
[1720406658463,100.0,131.79,131.74,35.31]
[1720406658627,100.0,131.76,131.74,35.31]
[1720406660033,16.4323,131.82,131.74,35.31]
[1720406660243,100.0,131.79,131.74,35.31]
[1720406661546,100.0,131.75,131.74,35.31]
[1720406662549,100.0,131.77,131.74,35.31]
[1720406662735,100.0,131.78,131.74,35.31]
[1720406663752,100.17,131.79,131.74,35.31]
[1720406664057,116.4323,131.82,131.74,35.31]
[1720406664354,100.0,131.82,131.77,35.31]
[1720406665058,15.0,131.91,131.8,35.31]
[1720406665059,100.0,131.87,131.8,35.31]
[1720406665252,116.0116,131.9,131.84,35.31]
[1720406666428,100.0,131.88,131.84,35.31]
[1720406667760,100.0,131.93,131.87,35.31]
[1720406667965,100.0,131.93,131.9,35.31]
[1720406668134,106.5475,131.95,131.9,35.31]
[1720406669461,100.0,131.92,131.9,35.31]
[1720406669835,100.0,131.89,131.83,0.17]
[1720406670164,100.0,131.89,131.87,35.31]
[1720406670549,100.0,131.89,131.82,0.17]
[1720406670851,100.0,131.89,131.87,35.31]
[1720406671057,100.0,131.87,131.85,35.31]
[1720406671266,100.0,131.85,131.82,35.31]
[1720406674662,106.1834,131.87,131.82,35.31]
[1720406676145,100.0,131.85,131.82,35.31]
[1720406676541,100.0,131.83,131.77,9.85266465]
[1720406676764,100.0,131.83,131.8,35.31]
[1720406677142,100.0,131.83,131.77,3.8121]
[1720406677449,100.0,131.83,131.8,35.31]
[1720406677850,100.0,131.85,131.8,35.31]
[1720406679370,106.1834,131.87,131.8,35.31]
[1720406679666,116.1203,131.9,131.83,35.31]
[1720406679873,116.1203,131.9,131.84,20.0]
[1720406680364,100.0,131.92,131.86,35.31]
[1720406680552,100.0,131.92,131.87,20.0]
[1720406680745,21.8334,131.94,131.87,20.0]
[1720406680746,121.8334,131.94,131.89,35.31]
[1720406680942,100.0,131.92,131.89,35.31]
[1720406683180,100.0,131.94,131.89,35.31]
[1720406683348,100.0,131.96,131.92,35.31]
[1720406683550,121.8334,131.98,131.92,35.31]
[1720406683978,21.8334,132.02,131.95,35.31]
[1720406684547,100.0,132.01,131.92,39.56]
[1720406684764,100.0,132.01,131.93,20.0]
[1720406685976,100.0,131.99,131.93,20.0]
[1720406686187,100.0,132.01,131.93,20.0]
[1720406686355,100.0,132.03,131.94,0.17]
[1720406686953,100.0,131.99,131.93,20.0]
[1720406687774,100.0,132.01,131.9,9.95151318]
[1720406687948,0.17,132.0,131.9,17.53261318]
[1720406688152,0.17,132.0,131.9,9.95151318]
[1720406688573,100.0,131.99,131.9,9.95151318]
[1720406688964,100.0,131.99,131.91,20.17]
[1720406689191,100.0,131.99,131.91,20.0]
[1720406689369,100.0,131.97,131.91,20.0]
[1720406689676,100.0,131.97,131.9,3.8121]
[1720406690673,100.0,131.95,131.89,5.98543104]
[1720406690979,100.0,131.95,131.88,39.56]
[1720406692152,100.0,131.97,131.88,39.56]
[1720406692351,100.0,131.97,131.89,20.0]